[Event "Titled Tuesday Blitz November 07 Early 2023"]
[White "Saya, Ethan"]
[Black "Vestby-Ellingsen, Mads"]
[WhiteFideId "26095181"]
[BlackFideId "1520857"]
[WhiteElo "2363"]
[BlackElo "2545"]
[Result "0-1"]
[Round "6"]
[TimeControl "180+1"]
[Date "2023.11.07"]
[WhiteClock "0:00:00"]
[BlackClock "0:00:22"]
[Board "116"]

1. e4 {[%clk 0:02:52]}  c6 {[%clk 0:02:59]} 2. d4 {[%clk 0:02:46]}  d5 {[%clk 0:02:59]} 3. Nd2 {[%clk 0:02:47]}  dxe4 {[%clk 0:02:57]} 4. Nxe4 {[%clk 0:02:48]}  Qc7 {[%clk 0:02:58]} 5. Nf3 {[%clk 0:02:32]}  Nf6 {[%clk 0:02:57]} 6. Bd3 {[%clk 0:02:26]}  Bg4 {[%clk 0:02:52]} 7. h3 {[%clk 0:02:22]}  Bh5 {[%clk 0:02:50]} 8. c3 {[%clk 0:02:15]}  Nbd7 {[%clk 0:02:47]} 9. Bg5 {[%clk 0:02:08]}  e6 {[%clk 0:02:37]} 10. Qe2 {[%clk 0:02:02]}  Nxe4 {[%clk 0:02:33]} 11. Qxe4 {[%clk 0:02:01]}  Bg6 {[%clk 0:02:32]} 12. Qe2 {[%clk 0:02:01]}  Bd6 {[%clk 0:02:28]} 13. O-O-O {[%clk 0:02:00]}  Bf4+ {[%clk 0:02:27]} 14. Bxf4 {[%clk 0:02:00]}  Qxf4+ {[%clk 0:02:28]} 15. Kb1 {[%clk 0:02:00]}  O-O-O {[%clk 0:02:25]} 16. Rhe1 {[%clk 0:02:00]}  Bh5 {[%clk 0:02:17]} 17. Qe4 {[%clk 0:01:56]}  Qxe4 {[%clk 0:02:15]} 18. Bxe4 {[%clk 0:01:56]}  Nf6 {[%clk 0:02:13]} 19. Ka1 {[%clk 0:01:26]}  Nxe4 {[%clk 0:01:45]} 20. Rxe4 {[%clk 0:01:27]}  Bxf3 {[%clk 0:01:45]} 21. gxf3 {[%clk 0:01:28]}  g6 {[%clk 0:01:45]} 22. Kb1 {[%clk 0:01:22]}  Rd5 {[%clk 0:01:45]} 23. Re5 {[%clk 0:01:21]}  Rhd8 {[%clk 0:01:37]} 24. Rde1 {[%clk 0:01:18]}  Rxe5 {[%clk 0:01:29]} 25. Rxe5 {[%clk 0:01:13]}  Rd5 {[%clk 0:01:29]} 26. f4 {[%clk 0:01:11]}  Kd7 {[%clk 0:01:28]} 27. Kc2 {[%clk 0:01:11]}  f6 {[%clk 0:01:07]} 28. Rxd5+ {[%clk 0:01:10]}  exd5 {[%clk 0:01:07]} 29. Kd3 {[%clk 0:00:59]}  Ke6 {[%clk 0:01:05]} 30. Ke3 {[%clk 0:00:56]}  Kf5 {[%clk 0:01:01]} 31. a4 {[%clk 0:00:47]}  a5 {[%clk 0:00:50]} 32. Kf3 {[%clk 0:00:37]}  g5 {[%clk 0:00:44]} 33. fxg5 {[%clk 0:00:37]}  fxg5 {[%clk 0:00:45]} 34. Ke3 {[%clk 0:00:28]}  g4 {[%clk 0:00:43]} 35. h4 {[%clk 0:00:06]}  Kg6 {[%clk 0:00:43]} 36. f4 {[%clk 0:00:07]}  Kf5 {[%clk 0:00:35]} 37. h5 {[%clk 0:00:03]}  b5 {[%clk 0:00:28]} 38. axb5 {[%clk 0:00:02]}  cxb5 {[%clk 0:00:28]} 39. h6 {[%clk 0:00:02]}  a4 {[%clk 0:00:27]} 40. Kf2 {[%clk 0:00:02]}  Kxf4 {[%clk 0:00:27]} 41. Kg2 {[%clk 0:00:02]}  Kg5 {[%clk 0:00:24]} 42. Kg3 {[%clk 0:00:02]}  Kxh6 {[%clk 0:00:25]} 43. Kxg4 {[%clk 0:00:03]}  Kg6 {[%clk 0:00:26]} 44. Kf4 {[%clk 0:00:02]}  h5 {[%clk 0:00:25]} 45. Ke5 {[%clk 0:00:03]}  h4 {[%clk 0:00:23]} 46. Kf4 {[%clk 0:00:02]}  Kh5 {[%clk 0:00:23]} 47. Kf3 {[%clk 0:00:01]}  Kg5 {[%clk 0:00:23]} 48. Kf2 {[%clk 0:00:01]}  Kf4 {[%clk 0:00:23]} 49. c4 {[%clk 0:00:01]}  bxc4 {[%clk 0:00:23]} 50. Kg2 {[%clk 0:00:01]}  c3 {[%clk 0:00:22]} 51. b4 {[%clk 0:00:00]}  c2 {[%clk 0:00:22]} 0-1


[Site "https://www.chess.com"]

[Event "Titled Tuesday Blitz November 07 Early 2023"]
[White "Goh, Zi Han"]
[Black "Iskusnyh, Sergei"]
[WhiteFideId "5819156"]
[BlackFideId "4120027"]
[WhiteElo "2339"]
[BlackElo "2542"]
[Result "0-1"]
[Round "6"]
[TimeControl "180+1"]
[Date "2023.11.07"]
[WhiteClock "0:00:00"]
[BlackClock "0:01:58"]
[Board "117"]

1. d4 {[%clk 0:02:52]}  d5 {[%clk 0:02:59]} 2. c4 {[%clk 0:02:51]}  c6 {[%clk 0:02:59]} 3. Nf3 {[%clk 0:02:50]}  Nf6 {[%clk 0:02:59]} 4. Nc3 {[%clk 0:02:50]}  a6 {[%clk 0:02:57]} 5. c5 {[%clk 0:02:50]}  Bf5 {[%clk 0:02:55]} 6. Bf4 {[%clk 0:02:46]}  Nbd7 {[%clk 0:02:55]} 7. h3 {[%clk 0:02:44]}  e6 {[%clk 0:02:49]} 8. e3 {[%clk 0:02:44]}  h6 {[%clk 0:02:46]} 9. Be2 {[%clk 0:02:43]}  Be7 {[%clk 0:02:45]} 10. O-O {[%clk 0:02:44]}  O-O {[%clk 0:02:45]} 11. b4 {[%clk 0:02:44]}  Ne4 {[%clk 0:02:44]} 12. Nxe4 {[%clk 0:02:40]}  Bxe4 {[%clk 0:02:44]} 13. a4 {[%clk 0:02:33]}  Bxf3 {[%clk 0:02:43]} 14. Bxf3 {[%clk 0:02:32]}  Bf6 {[%clk 0:02:43]} 15. Bg3 {[%clk 0:02:21]}  e5 {[%clk 0:02:41]} 16. Bg4 {[%clk 0:02:02]}  exd4 {[%clk 0:02:35]} 17. exd4 {[%clk 0:02:03]}  Re8 {[%clk 0:02:35]} 18. Qd3 {[%clk 0:02:01]}  Re4 {[%clk 0:02:33]} 19. Rfd1 {[%clk 0:01:38]}  Rxd4 {[%clk 0:02:29]} 20. Qf5 {[%clk 0:01:31]}  Rxd1+ {[%clk 0:02:23]} 21. Rxd1 {[%clk 0:01:30]}  Nf8 {[%clk 0:02:23]} 22. Be2 {[%clk 0:01:16]}  Qe7 {[%clk 0:02:14]} 23. Bd3 {[%clk 0:01:09]}  Qe6 {[%clk 0:02:14]} 24. Qf3 {[%clk 0:01:03]}  Re8 {[%clk 0:02:09]} 25. Bf4 {[%clk 0:00:41]}  Ng6 {[%clk 0:02:05]} 26. Bxg6 {[%clk 0:00:28]}  fxg6 {[%clk 0:02:06]} 27. Qg3 {[%clk 0:00:14]}  g5 {[%clk 0:02:04]} 28. Be3 {[%clk 0:00:13]}  Qe4 {[%clk 0:02:02]} 29. b5 {[%clk 0:00:04]}  Qxa4 {[%clk 0:01:58]} 30. bxc6 {[%clk 0:00:00]}  Qxd1+ {[%clk 0:01:58]} 0-1


[Site "https://www.chess.com"]

[Event "Titled Tuesday Blitz November 07 Early 2023"]
[White "Shukhman, Anna"]
[Black "TheAlienParty"]
[WhiteFideId "54180058"]
[WhiteElo "2534"]
[BlackElo "2263"]
[Result "1-0"]
[Round "6"]
[TimeControl "180+1"]
[Date "2023.11.07"]
[WhiteClock "0:00:15"]
[BlackClock "0:00:09"]
[Board "119"]

1. e4 {[%clk 0:02:54]}  e5 {[%clk 0:02:56]} 2. Nf3 {[%clk 0:02:53]}  Nc6 {[%clk 0:02:55]} 3. Bb5 {[%clk 0:02:53]}  a6 {[%clk 0:02:54]} 4. Ba4 {[%clk 0:02:53]}  d6 {[%clk 0:02:54]} 5. O-O {[%clk 0:02:50]}  Bd7 {[%clk 0:02:54]} 6. d4 {[%clk 0:02:48]}  exd4 {[%clk 0:02:49]} 7. Bxc6 {[%clk 0:02:34]}  bxc6 {[%clk 0:02:46]} 8. Qxd4 {[%clk 0:02:33]}  c5 {[%clk 0:02:46]} 9. Qd3 {[%clk 0:02:23]}  Be7 {[%clk 0:02:42]} 10. b3 {[%clk 0:02:20]}  Bf6 {[%clk 0:02:39]} 11. Nc3 {[%clk 0:02:19]}  Ne7 {[%clk 0:02:37]} 12. Bb2 {[%clk 0:02:18]}  Ng6 {[%clk 0:02:35]} 13. Rad1 {[%clk 0:02:16]}  O-O {[%clk 0:02:34]} 14. Rfe1 {[%clk 0:02:12]}  Nf4 {[%clk 0:02:31]} 15. Qe3 {[%clk 0:02:08]}  Ng6 {[%clk 0:02:14]} 16. Bc1 {[%clk 0:02:06]}  Re8 {[%clk 0:02:03]} 17. Nd5 {[%clk 0:02:03]}  a5 {[%clk 0:01:53]} 18. a4 {[%clk 0:01:41]}  Bc6 {[%clk 0:01:46]} 19. c4 {[%clk 0:01:39]}  Bxd5 {[%clk 0:01:44]} 20. Rxd5 {[%clk 0:01:37]}  Qd7 {[%clk 0:01:38]} 21. Qxc5 {[%clk 0:01:27]}  Qg4 {[%clk 0:01:36]} 22. Qe3 {[%clk 0:01:24]}  h6 {[%clk 0:01:29]} 23. h3 {[%clk 0:01:22]}  Qc8 {[%clk 0:01:25]} 24. Nd4 {[%clk 0:01:17]}  Qb7 {[%clk 0:01:21]} 25. Nf5 {[%clk 0:01:13]}  Be5 {[%clk 0:01:16]} 26. g3 {[%clk 0:00:59]}  c6 {[%clk 0:01:13]} 27. Rd3 {[%clk 0:00:55]}  Re6 {[%clk 0:01:09]} 28. f4 {[%clk 0:00:53]}  Bf6 {[%clk 0:00:55]} 29. Nxd6 {[%clk 0:00:50]}  Qe7 {[%clk 0:00:53]} 30. e5 {[%clk 0:00:46]}  Bxe5 {[%clk 0:00:43]} 31. fxe5 {[%clk 0:00:41]}  Rxe5 {[%clk 0:00:43]} 32. Nf5 {[%clk 0:00:30]}  Qe8 {[%clk 0:00:28]} 33. Qxe5 {[%clk 0:00:27]}  Nxe5 {[%clk 0:00:27]} 34. Rde3 {[%clk 0:00:21]}  Nf3+ {[%clk 0:00:25]} 35. Kf2 {[%clk 0:00:19]}  Nxe1 {[%clk 0:00:25]} 36. Rxe8+ {[%clk 0:00:19]}  Rxe8 {[%clk 0:00:23]} 37. Be3 {[%clk 0:00:18]}  Nd3+ {[%clk 0:00:22]} 38. Kf3 {[%clk 0:00:18]}  Kh7 {[%clk 0:00:19]} 39. Nd4 {[%clk 0:00:18]}  Ne5+ {[%clk 0:00:17]} 40. Kf2 {[%clk 0:00:17]}  f6 {[%clk 0:00:18]} 41. Bd2 {[%clk 0:00:15]}  Rb8 {[%clk 0:00:18]} 42. Bxa5 {[%clk 0:00:14]}  Rxb3 {[%clk 0:00:18]} 43. Nxb3 {[%clk 0:00:14]}  Nxc4 {[%clk 0:00:18]} 44. Bc7 {[%clk 0:00:15]}  Kg8 {[%clk 0:00:13]} 45. a5 {[%clk 0:00:14]}  Kf7 {[%clk 0:00:14]} 46. a6 {[%clk 0:00:14]}  Ke7 {[%clk 0:00:15]} 47. a7 {[%clk 0:00:15]}  Kd7 {[%clk 0:00:15]} 48. a8=Q {[%clk 0:00:15]}  Kxc7 {[%clk 0:00:16]} 49. Nc5 {[%clk 0:00:15]}  Kd6 {[%clk 0:00:16]} 50. Ne4+ {[%clk 0:00:15]}  Ke5 {[%clk 0:00:16]} 51. Qxc6 {[%clk 0:00:15]}  f5 {[%clk 0:00:14]} 52. Nc5 {[%clk 0:00:14]}  Kd4 {[%clk 0:00:13]} 53. Ne6+ {[%clk 0:00:14]}  Kc3 {[%clk 0:00:09]} 54. Nxg7 {[%clk 0:00:15]} 1-0


[Site "https://www.chess.com"]

[Event "Titled Tuesday Blitz November 07 Early 2023"]
[White "Hambleton, Aman"]
[Black "Azali, Tannaz"]
[WhiteFideId "2606577"]
[BlackFideId "12537721"]
[WhiteElo "2736"]
[BlackElo "2430"]
[Result "1-0"]
[Round "6"]
[TimeControl "180+1"]
[Date "2023.11.07"]
[WhiteClock "0:00:03"]
[BlackClock "0:00:09"]
[Board "122"]

1. d4 {[%clk 0:03:00]}  Nf6 {[%clk 0:02:59]} 2. Bf4 {[%clk 0:03:00]}  e6 {[%clk 0:02:59]} 3. e3 {[%clk 0:03:00]}  c5 {[%clk 0:02:59]} 4. c3 {[%clk 0:03:00]}  d5 {[%clk 0:02:57]} 5. Nd2 {[%clk 0:02:59]}  Bd6 {[%clk 0:02:57]} 6. Ngf3 {[%clk 0:02:58]}  O-O {[%clk 0:02:56]} 7. Bd3 {[%clk 0:02:59]}  Qc7 {[%clk 0:02:54]} 8. Bxd6 {[%clk 0:02:59]}  Qxd6 {[%clk 0:02:54]} 9. Ne5 {[%clk 0:03:00]}  Nc6 {[%clk 0:02:54]} 10. f4 {[%clk 0:03:00]}  b6 {[%clk 0:02:53]} 11. O-O {[%clk 0:03:00]}  Bb7 {[%clk 0:02:53]} 12. Qf3 {[%clk 0:03:01]}  Ne7 {[%clk 0:02:47]} 13. g4 {[%clk 0:03:01]}  Ne4 {[%clk 0:02:37]} 14. Nxe4 {[%clk 0:03:00]}  dxe4 {[%clk 0:02:37]} 15. Bxe4 {[%clk 0:03:01]}  Bxe4 {[%clk 0:02:37]} 16. Qxe4 {[%clk 0:03:02]}  f5 {[%clk 0:02:34]} 17. Qf3 {[%clk 0:02:40]}  Rae8 {[%clk 0:02:16]} 18. g5 {[%clk 0:02:28]}  Nd5 {[%clk 0:02:04]} 19. Rad1 {[%clk 0:02:19]}  Rc8 {[%clk 0:01:57]} 20. c4 {[%clk 0:02:07]}  Nb4 {[%clk 0:01:49]} 21. dxc5 {[%clk 0:00:42]}  Qxc5 {[%clk 0:01:47]} 22. Nd7 {[%clk 0:00:43]}  Qxc4 {[%clk 0:01:46]} 23. Rd4 {[%clk 0:00:43]}  Qb5 {[%clk 0:01:28]} 24. a4 {[%clk 0:00:29]}  Qxa4 {[%clk 0:01:23]} 25. Nxf8 {[%clk 0:00:27]}  Rxf8 {[%clk 0:01:21]} 26. Qb7 {[%clk 0:00:21]}  Qb3 {[%clk 0:01:13]} 27. Rd7 {[%clk 0:00:20]}  Qxb2 {[%clk 0:01:14]} 28. Rfd1 {[%clk 0:00:06]}  Nd5 {[%clk 0:01:12]} 29. Qc6 {[%clk 0:00:03]}  Kh8 {[%clk 0:00:21]} 30. Qd6 {[%clk 0:00:04]}  Rg8 {[%clk 0:00:20]} 31. Rd8 {[%clk 0:00:04]}  Nxe3 {[%clk 0:00:12]} 32. Rxg8+ {[%clk 0:00:03]}  Kxg8 {[%clk 0:00:09]} 33. Qxe6+ {[%clk 0:00:03]} 1-0


[Site "https://www.chess.com"]

[Event "Titled Tuesday Blitz November 07 Early 2023"]
[White "Molina Carretero, Daniel"]
[Black "Zavgorodniy, Sergiy"]
[WhiteFideId "32071914"]
[BlackFideId "14110148"]
[WhiteElo "2426"]
[BlackElo "2678"]
[Result "0-1"]
[Round "6"]
[TimeControl "180+1"]
[Date "2023.11.07"]
[WhiteClock "0:00:17"]
[BlackClock "0:01:35"]
[Board "123"]

1. c4 {[%clk 0:03:00]}  c5 {[%clk 0:02:59]} 2. g3 {[%clk 0:03:00]}  Nc6 {[%clk 0:02:59]} 3. Bg2 {[%clk 0:03:00]}  g6 {[%clk 0:02:59]} 4. Nc3 {[%clk 0:03:01]}  Bg7 {[%clk 0:02:56]} 5. a3 {[%clk 0:03:01]}  e6 {[%clk 0:02:56]} 6. b4 {[%clk 0:03:01]}  Nxb4 {[%clk 0:02:56]} 7. axb4 {[%clk 0:03:02]}  cxb4 {[%clk 0:02:57]} 8. d4 {[%clk 0:02:58]}  bxc3 {[%clk 0:02:57]} 9. e3 {[%clk 0:02:58]}  Ne7 {[%clk 0:02:56]} 10. Ne2 {[%clk 0:02:59]}  d5 {[%clk 0:02:56]} 11. Nxc3 {[%clk 0:02:54]}  dxc4 {[%clk 0:02:53]} 12. Qa4+ {[%clk 0:02:54]}  Bd7 {[%clk 0:02:53]} 13. Qxc4 {[%clk 0:02:53]}  Bc6 {[%clk 0:02:54]} 14. Bxc6+ {[%clk 0:02:49]}  Nxc6 {[%clk 0:02:55]} 15. Ba3 {[%clk 0:02:46]}  Bf8 {[%clk 0:02:53]} 16. O-O {[%clk 0:02:31]}  Bxa3 {[%clk 0:02:52]} 17. Rxa3 {[%clk 0:02:31]}  O-O {[%clk 0:02:52]} 18. Rb1 {[%clk 0:02:31]}  Qe7 {[%clk 0:02:48]} 19. Rab3 {[%clk 0:02:19]}  Na5 {[%clk 0:02:45]} 20. Qb4 {[%clk 0:02:18]}  Qxb4 {[%clk 0:02:45]} 21. Rxb4 {[%clk 0:02:18]}  Rfc8 {[%clk 0:02:42]} 22. Ne4 {[%clk 0:02:14]}  b6 {[%clk 0:02:39]} 23. h4 {[%clk 0:02:09]}  Rc2 {[%clk 0:02:35]} 24. h5 {[%clk 0:02:07]}  Kg7 {[%clk 0:02:35]} 25. hxg6 {[%clk 0:02:00]}  hxg6 {[%clk 0:02:36]} 26. Kg2 {[%clk 0:02:00]}  Rac8 {[%clk 0:02:27]} 27. Rh1 {[%clk 0:01:57]}  Rh8 {[%clk 0:02:25]} 28. Rxh8 {[%clk 0:01:46]}  Kxh8 {[%clk 0:02:26]} 29. g4 {[%clk 0:01:30]}  Nc4 {[%clk 0:02:21]} 30. Kf3 {[%clk 0:01:26]}  Nd2+ {[%clk 0:02:21]} 31. Nxd2 {[%clk 0:01:24]}  Rxd2 {[%clk 0:02:22]} 32. Rc4 {[%clk 0:01:22]}  Kg7 {[%clk 0:02:19]} 33. g5 {[%clk 0:01:21]}  b5 {[%clk 0:02:17]} 34. Rc7 {[%clk 0:01:15]}  a5 {[%clk 0:02:16]} 35. Ra7 {[%clk 0:01:09]}  a4 {[%clk 0:02:15]} 36. Ra5 {[%clk 0:01:08]}  Rb2 {[%clk 0:02:14]} 37. e4 {[%clk 0:01:07]}  Rb3+ {[%clk 0:02:13]} 38. Kf4 {[%clk 0:01:07]}  a3 {[%clk 0:02:13]} 39. d5 {[%clk 0:01:07]}  exd5 {[%clk 0:02:14]} 40. exd5 {[%clk 0:01:08]}  b4 {[%clk 0:02:13]} 41. Ra4 {[%clk 0:00:59]}  Rb2 {[%clk 0:02:07]} 42. Ke3 {[%clk 0:00:47]}  a2 {[%clk 0:02:07]} 43. d6 {[%clk 0:00:46]}  Rb3+ {[%clk 0:01:42]} 44. Ke2 {[%clk 0:00:35]}  Ra3 {[%clk 0:01:42]} 45. Rxa3 {[%clk 0:00:23]}  bxa3 {[%clk 0:01:43]} 46. d7 {[%clk 0:00:23]}  a1=Q {[%clk 0:01:40]} 47. d8=Q {[%clk 0:00:24]}  Qb2+ {[%clk 0:01:41]} 48. Kf3 {[%clk 0:00:24]}  a2 {[%clk 0:01:40]} 49. Kg3 {[%clk 0:00:18]}  a1=Q {[%clk 0:01:35]} 50. Qe7 {[%clk 0:00:18]}  Qe5+ {[%clk 0:01:34]} 51. Qxe5+ {[%clk 0:00:17]}  Qxe5+ {[%clk 0:01:35]} 0-1


[Site "https://www.chess.com"]

[Event "Titled Tuesday Blitz November 07 Early 2023"]
[White "Su, Dion"]
[Black "Kosteniuk, Alexandra"]
[WhiteFideId "2029731"]
[BlackFideId "4128125"]
[WhiteElo "2418"]
[BlackElo "2667"]
[Result "0-1"]
[Round "6"]
[TimeControl "180+1"]
[Date "2023.11.07"]
[WhiteClock "0:00:00"]
[BlackClock "0:00:21"]
[Board "125"]

1. e4 {[%clk 0:03:00]}  c5 {[%clk 0:02:55]} 2. Nf3 {[%clk 0:03:00]}  Nc6 {[%clk 0:02:55]} 3. d4 {[%clk 0:03:01]}  cxd4 {[%clk 0:02:55]} 4. Nxd4 {[%clk 0:03:01]}  Nf6 {[%clk 0:02:56]} 5. Nc3 {[%clk 0:03:02]}  d6 {[%clk 0:02:56]} 6. f3 {[%clk 0:03:02]}  e5 {[%clk 0:02:55]} 7. Nb3 {[%clk 0:03:02]}  Be6 {[%clk 0:02:55]} 8. Be3 {[%clk 0:03:03]}  d5 {[%clk 0:02:49]} 9. exd5 {[%clk 0:03:03]}  Nxd5 {[%clk 0:02:49]} 10. Nxd5 {[%clk 0:03:02]}  Bxd5 {[%clk 0:02:46]} 11. Qd2 {[%clk 0:03:01]}  Bb4 {[%clk 0:02:42]} 12. c3 {[%clk 0:02:58]}  Be7 {[%clk 0:02:42]} 13. O-O-O {[%clk 0:02:57]}  Bxb3 {[%clk 0:02:41]} 14. axb3 {[%clk 0:02:57]}  O-O {[%clk 0:02:35]} 15. Bd3 {[%clk 0:02:51]}  Qc8 {[%clk 0:02:26]} 16. Kb1 {[%clk 0:02:50]}  a5 {[%clk 0:02:24]} 17. Qc2 {[%clk 0:02:44]}  f5 {[%clk 0:02:09]} 18. g4 {[%clk 0:02:39]}  e4 {[%clk 0:02:04]} 19. Bc4+ {[%clk 0:02:36]}  Kh8 {[%clk 0:02:05]} 20. fxe4 {[%clk 0:02:21]}  fxg4 {[%clk 0:02:04]} 21. h3 {[%clk 0:02:10]}  Ne5 {[%clk 0:01:59]} 22. Bd5 {[%clk 0:02:01]}  g3 {[%clk 0:01:54]} 23. Rhg1 {[%clk 0:01:38]}  Bh4 {[%clk 0:01:47]} 24. Bd4 {[%clk 0:01:21]}  Qc7 {[%clk 0:01:46]} 25. Qe2 {[%clk 0:01:09]}  Nf3 {[%clk 0:01:42]} 26. Rg2 {[%clk 0:01:04]}  a4 {[%clk 0:01:38]} 27. e5 {[%clk 0:00:53]}  Nxd4 {[%clk 0:01:26]} 28. Rxd4 {[%clk 0:00:52]}  axb3 {[%clk 0:01:20]} 29. Rxh4 {[%clk 0:00:36]}  Ra1+ {[%clk 0:01:15]} 30. Kxa1 {[%clk 0:00:36]}  Qa5+ {[%clk 0:01:15]} 31. Kb1 {[%clk 0:00:36]}  Qxd5 {[%clk 0:01:06]} 32. Rd4 {[%clk 0:00:28]}  Qa5 {[%clk 0:01:03]} 33. e6 {[%clk 0:00:17]}  Qa2+ {[%clk 0:01:01]} 34. Kc1 {[%clk 0:00:17]}  Qa1+ {[%clk 0:01:02]} 35. Kd2 {[%clk 0:00:17]}  Qxb2+ {[%clk 0:01:03]} 36. Kd3 {[%clk 0:00:16]}  Qb1+ {[%clk 0:01:04]} 37. Kd2 {[%clk 0:00:12]}  b2 {[%clk 0:01:01]} 38. Rb4 {[%clk 0:00:08]}  Qc1+ {[%clk 0:00:54]} 39. Kd3 {[%clk 0:00:09]}  b1=Q+ {[%clk 0:00:38]} 40. Rxb1 {[%clk 0:00:09]}  Qxb1+ {[%clk 0:00:39]} 41. Qc2 {[%clk 0:00:06]}  Qf1+ {[%clk 0:00:37]} 42. Qe2 {[%clk 0:00:05]}  Qf5+ {[%clk 0:00:34]} 43. Qe4 {[%clk 0:00:04]}  Rd8+ {[%clk 0:00:33]} 44. Ke3 {[%clk 0:00:04]}  Qg5+ {[%clk 0:00:32]} 45. Kf3 {[%clk 0:00:04]}  Rf8+ {[%clk 0:00:32]} 46. Ke2 {[%clk 0:00:04]}  Qb5+ {[%clk 0:00:30]} 47. c4 {[%clk 0:00:02]}  Qb2+ {[%clk 0:00:28]} 48. Kd3 {[%clk 0:00:02]}  Rd8+ {[%clk 0:00:22]} 49. Ke3 {[%clk 0:00:03]}  Qc3+ {[%clk 0:00:22]} 50. Kf4 {[%clk 0:00:00]}  Rd4 {[%clk 0:00:21]} 0-1


[Site "https://www.chess.com"]

[Event "Titled Tuesday Blitz November 07 Early 2023"]
[White "Herzog2012"]
[Black "Cesar Maestre, Bernardo"]
[BlackFideId "24542547"]
[WhiteElo "2573"]
[BlackElo "2414"]
[Result "1-0"]
[Round "6"]
[TimeControl "180+1"]
[Date "2023.11.07"]
[WhiteClock "0:00:11"]
[BlackClock "0:00:07"]
[Board "128"]

1. e4 {[%clk 0:03:00]}  c5 {[%clk 0:02:59]} 2. Nf3 {[%clk 0:03:00]}  d6 {[%clk 0:02:59]} 3. d4 {[%clk 0:03:00]}  cxd4 {[%clk 0:03:00]} 4. Nxd4 {[%clk 0:03:01]}  Nf6 {[%clk 0:03:01]} 5. Nc3 {[%clk 0:03:01]}  a6 {[%clk 0:03:01]} 6. Bg5 {[%clk 0:03:01]}  e6 {[%clk 0:03:01]} 7. f4 {[%clk 0:02:56]}  Be7 {[%clk 0:03:01]} 8. Qf3 {[%clk 0:02:53]}  Qc7 {[%clk 0:02:59]} 9. O-O-O {[%clk 0:02:49]}  Nbd7 {[%clk 0:02:59]} 10. g4 {[%clk 0:02:47]}  b5 {[%clk 0:02:57]} 11. Bxf6 {[%clk 0:02:46]}  Nxf6 {[%clk 0:02:55]} 12. g5 {[%clk 0:02:45]}  Nd7 {[%clk 0:02:55]} 13. f5 {[%clk 0:02:45]}  O-O {[%clk 0:02:55]} 14. Rg1 {[%clk 0:02:42]}  b4 {[%clk 0:02:54]} 15. Nce2 {[%clk 0:02:41]}  e5 {[%clk 0:02:54]} 16. f6 {[%clk 0:02:41]}  exd4 {[%clk 0:02:51]} 17. fxe7 {[%clk 0:02:40]}  Re8 {[%clk 0:02:51]} 18. Nxd4 {[%clk 0:02:39]}  Ne5 {[%clk 0:02:51]} 19. Qf4 {[%clk 0:02:37]}  g6 {[%clk 0:02:39]} 20. h4 {[%clk 0:02:23]}  a5 {[%clk 0:02:04]} 21. Nb5 {[%clk 0:01:51]}  Qxe7 {[%clk 0:01:51]} 22. Be2 {[%clk 0:01:26]}  Ba6 {[%clk 0:01:44]} 23. Rd5 {[%clk 0:00:58]}  Bxb5 {[%clk 0:01:18]} 24. Bxb5 {[%clk 0:00:58]}  Red8 {[%clk 0:01:14]} 25. h5 {[%clk 0:00:40]}  a4 {[%clk 0:01:11]} 26. hxg6 {[%clk 0:00:39]}  hxg6 {[%clk 0:00:53]} 27. Qf6 {[%clk 0:00:16]}  Qxf6 {[%clk 0:00:36]} 28. gxf6 {[%clk 0:00:17]}  a3 {[%clk 0:00:30]} 29. Rgd1 {[%clk 0:00:10]}  axb2+ {[%clk 0:00:27]} 30. Kxb2 {[%clk 0:00:11]}  Ra5 {[%clk 0:00:16]} 31. Rxe5 {[%clk 0:00:11]}  Rda8 {[%clk 0:00:09]} 32. Re8+ {[%clk 0:00:11]}  Rxe8 {[%clk 0:00:06]} 33. Bxe8 {[%clk 0:00:11]}  Re5 {[%clk 0:00:07]} 34. Bc6 {[%clk 0:00:11]} 1-0


[Site "https://www.chess.com"]

[Event "Titled Tuesday Blitz November 07 Early 2023"]
[White "Jaskolka, Tomasz"]
[Black "Suspenser17"]
[WhiteFideId "1170791"]
[WhiteElo "2558"]
[BlackElo "2409"]
[Result "1-0"]
[Round "6"]
[TimeControl "180+1"]
[Date "2023.11.07"]
[WhiteClock "0:00:34"]
[BlackClock "0:00:13"]
[Board "129"]

1. e4 {[%clk 0:03:00]}  e5 {[%clk 0:03:00]} 2. Nf3 {[%clk 0:02:59]}  Nc6 {[%clk 0:03:00]} 3. Bc4 {[%clk 0:03:00]}  Nf6 {[%clk 0:03:00]} 4. Ng5 {[%clk 0:03:01]}  d5 {[%clk 0:03:00]} 5. exd5 {[%clk 0:03:01]}  Na5 {[%clk 0:03:01]} 6. Bb5+ {[%clk 0:03:02]}  c6 {[%clk 0:03:01]} 7. dxc6 {[%clk 0:03:03]}  bxc6 {[%clk 0:03:02]} 8. Bd3 {[%clk 0:03:03]}  Nd5 {[%clk 0:03:01]} 9. h4 {[%clk 0:02:50]}  h6 {[%clk 0:02:54]} 10. Qh5 {[%clk 0:02:49]}  Qf6 {[%clk 0:02:38]} 11. Nxf7 {[%clk 0:02:34]}  Nf4 {[%clk 0:02:30]} 12. Qxe5+ {[%clk 0:02:30]}  Kxf7 {[%clk 0:02:26]} 13. Qxa5 {[%clk 0:02:31]}  Nxd3+ {[%clk 0:02:02]} 14. cxd3 {[%clk 0:02:30]}  Bf5 {[%clk 0:01:58]} 15. Qc3 {[%clk 0:02:12]}  Re8+ {[%clk 0:01:54]} 16. Kd1 {[%clk 0:02:00]}  Bg4+ {[%clk 0:01:47]} 17. Kc2 {[%clk 0:01:58]}  Qxf2 {[%clk 0:01:40]} 18. Na3 {[%clk 0:01:47]}  Bxa3 {[%clk 0:01:34]} 19. bxa3 {[%clk 0:01:45]}  Be2 {[%clk 0:01:22]} 20. Bb2 {[%clk 0:01:37]}  Qg3 {[%clk 0:01:10]} 21. Qc4+ {[%clk 0:01:29]}  Re6 {[%clk 0:01:03]} 22. Rae1 {[%clk 0:01:10]}  Bg4 {[%clk 0:00:46]} 23. Rhf1+ {[%clk 0:01:07]}  Ke7 {[%clk 0:00:46]} 24. Qb4+ {[%clk 0:00:56]}  Kd8 {[%clk 0:00:31]} 25. Qd4+ {[%clk 0:00:37]}  Kc8 {[%clk 0:00:24]} 26. Qxg7 {[%clk 0:00:36]}  Bd1+ {[%clk 0:00:13]} 27. Kxd1 {[%clk 0:00:34]} 1-0


[Site "https://www.chess.com"]